{"text_format":"3","workbook":"xlsx","n_sheets":6,"sheets":["Instrumentbord","Salg","Inntekter","Utgifter","Avgifter","Kategorier"],"not_rendered":{"images":1,"defined_names":34},"read":"whole","date_system":"1900"}

{"sheet":"Instrumentbord","index":0,"n_rows":19,"n_cols":8,"rows_kept":19,"merged":[[0,2,0,4],[0,6,3,7],[4,1,4,7]]}
[null,"Oversikt over tap og fortjeneste","For [måneden eller året] som slutter [dag.måned.år]"]
[null,"Firmanavn","Angitt i 000"]
[null,"Gjeldende bruttomargin [L/J]",{"$f":"IFERROR(IF(Total_bruttofortjeneste=0,\"-\",Total_bruttofortjeneste/Total_salgsomsetning),\"-\")","v":"-"}]
[null,"Gjeldende avkastning på salg [T/J]",{"$f":"IFERROR(IF(Nettofortjeneste=0,\"-\",Nettofortjeneste/Total_salgsomsetning),\"-\")","v":"-"}]
[null,"Du må ikke endre kategoriene i dette regnearket, ellers kan formlene brytes. Bruk regnearket Kategori til å legge til kategorier og oppdatere de korresponderende regnearkene med oppføringer. Dette regnearket oppdateres automatisk."]
[null,"Sammendrag","Total forrige periode","Totalt budsjett","Total gjeldende\nPeriode","Total gjeldende periode som % av salg","Total % endring fra forrige periode","Total % endring fra budsjett"]
[null,"Total salgsomsetning [J]",{"$f":"SUMIFS(Salgsomsetning_1[Forrige periode],Salgsomsetning_1[Omsetningstype],\"Salgsomsetning\")","v":0},{"$f":"SUMIFS(Salgsomsetning_1[Budsjett],Salgsomsetning_1[Omsetningstype],\"Salgsomsetning\")","v":0},{"$f":"SUMIFS(Salgsomsetning_1[Gjeldende periode],Salgsomsetning_1[Omsetningstype],\"Salgsomsetning\")","v":0},{"$f":"SUMIFS(Salgsomsetning_1[Gjeldende periode som % av salg],Salgsomsetning_1[Omsetningstype],\"Salgsomsetning\")","v":{"v":0,"d":"0.00%"}},{"$f":"SUMIFS(Salgsomsetning_1[% endring fra forrige periode],Salgsomsetning_1[Omsetningstype],\"Salgsomsetning\")","v":{"v":0,"d":"0.00%"}},{"$f":"SUMIFS(Salgsomsetning_1[% endring fra budsjett],Salgsomsetning_1[Omsetningstype],\"Salgsomsetning\")","v":{"v":0,"d":"0.00%"}}]
[null,"Total salgskostnad [K]",{"$f":"SUMIFS(Salgsomsetning_1[Forrige periode],Salgsomsetning_1[Omsetningstype],\"Kostnad for salg\")","v":0},{"$f":"SUMIFS(Salgsomsetning_1[Budsjett],Salgsomsetning_1[Omsetningstype],\"Kostnad for salg\")","v":0},{"$f":"SUMIFS(Salgsomsetning_1[Gjeldende periode],Salgsomsetning_1[Omsetningstype],\"Kostnad for salg\")","v":0},{"$f":"SUMIFS(Salgsomsetning_1[Gjeldende periode som % av salg],Salgsomsetning_1[Omsetningstype],\"Kostnad for salg\")","v":{"v":0,"d":"0.00%"}},{"$f":"SUMIFS(Salgsomsetning_1[% endring fra forrige periode],Salgsomsetning_1[Omsetningstype],\"Kostnad for salg\")","v":{"v":0,"d":"0.00%"}},{"$f":"SUMIFS(Salgsomsetning_1[% endring fra budsjett],Salgsomsetning_1[Omsetningstype],\"Kostnad for salg\")","v":{"v":0,"d":"0.00%"}}]
[null,"Totale utgifter av salg og markedsføring [M]",{"$f":"SUMIFS(Driftsutgifter[Forrige periode],Driftsutgifter[Utgiftstype],\"Salg og markedsføring\")","v":0},{"$f":"SUMIFS(Driftsutgifter[Budsjett],Driftsutgifter[Utgiftstype],\"Salg og markedsføring\")","v":0},{"$f":"SUMIFS(Driftsutgifter[Gjeldende periode],Driftsutgifter[Utgiftstype],\"Salg og markedsføring\")","v":0},{"$f":"SUMIFS(Driftsutgifter[Gjeldende periode som % av salg],Driftsutgifter[Utgiftstype],\"Salg og markedsføring\")","v":{"v":0,"d":"0.00%"}},{"$f":"SUMIFS(Driftsutgifter[% endring fra forrige periode],Driftsutgifter[Utgiftstype],\"Salg og markedsføring\")","v":{"v":0,"d":"0.00%"}},{"$f":"SUMIFS(Driftsutgifter[% endring fra budsjett],Driftsutgifter[Utgiftstype],\"Salg og markedsføring\")","v":{"v":0,"d":"0.00%"}}]
[null,"Totale utgifter av forskning og utvikling [N]",{"$f":"SUMIFS(Driftsutgifter[Forrige periode],Driftsutgifter[Utgiftstype],\"Forskning og utvikling\")","v":0},{"$f":"SUMIFS(Driftsutgifter[Budsjett],Driftsutgifter[Utgiftstype],\"Forskning og utvikling\")","v":0},{"$f":"SUMIFS(Driftsutgifter[Gjeldende periode],Driftsutgifter[Utgiftstype],\"Forskning og utvikling\")","v":0},{"$f":"SUMIFS(Driftsutgifter[Gjeldende periode som % av salg],Driftsutgifter[Utgiftstype],\"Forskning og utvikling\")","v":{"v":0,"d":"0.00%"}},{"$f":"SUMIFS(Driftsutgifter[% endring fra forrige periode],Driftsutgifter[Utgiftstype],\"Forskning og utvikling\")","v":{"v":0,"d":"0.00%"}},{"$f":"SUMIFS(Driftsutgifter[% endring fra budsjett],Driftsutgifter[Utgiftstype],\"Forskning og utvikling\")","v":{"v":0,"d":"0.00%"}}]
[null,"Generelle og administrative utgifter [O]",{"$f":"SUMIFS(Driftsutgifter[Forrige periode],Driftsutgifter[Utgiftstype],\"Generell og administrativ\")","v":0},{"$f":"SUMIFS(Driftsutgifter[Budsjett],Driftsutgifter[Utgiftstype],\"Generell og administrativ\")","v":0},{"$f":"SUMIFS(Driftsutgifter[Gjeldende periode],Driftsutgifter[Utgiftstype],\"Generell og administrativ\")","v":0},{"$f":"SUMIFS(Driftsutgifter[Gjeldende periode som % av salg],Driftsutgifter[Utgiftstype],\"Generell og administrativ\")","v":{"v":0,"d":"0.00%"}},{"$f":"SUMIFS(Driftsutgifter[% endring fra forrige periode],Driftsutgifter[Utgiftstype],\"Generell og administrativ\")","v":{"v":0,"d":"0.00%"}},{"$f":"SUMIFS(Driftsutgifter[% endring fra budsjett],Driftsutgifter[Utgiftstype],\"Generell og administrativ\")","v":{"v":0,"d":"0.00%"}}]
[null,"Totale andre driftskostnader [P]",{"$f":"Driftsutgifter[[#Totals],[Forrige periode]]-SUM(C9:C11)","v":0},{"$f":"Driftsutgifter[[#Totals],[Budsjett]]-SUM(D9:D11)","v":0},{"$f":"Driftsutgifter[[#Totals],[Gjeldende periode]]-SUM(E9:E11)","v":0},{"$f":"Driftsutgifter[[#Totals],[Gjeldende periode som % av salg]]-SUM(F9:F11)","v":{"v":0,"d":"0.00%"}},{"$f":"Driftsutgifter[[#Totals],[% endring fra forrige periode]]-SUM(G9:G11)","v":{"v":0,"d":"0.00%"}},{"$f":"Driftsutgifter[[#Totals],[% endring fra budsjett]]-SUM(H9:H11)","v":{"v":0,"d":"0.00%"}}]
[null,"Annen inntekt [S]",{"$f":"Inntekter[[#Totals],[Forrige periode]]","v":0},{"$f":"Inntekter[[#Totals],[Budsjett]]","v":0},{"$f":"Inntekter[[#Totals],[Gjeldende periode]]","v":0},{"$f":"Inntekter[[#Totals],[Gjeldende periode som % av salg]]","v":{"v":0,"d":"0.00%"}},{"$f":"Inntekter[[#Totals],[% endring fra forrige periode]]","v":{"v":0,"d":"0.00%"}},{"$f":"Inntekter[[#Totals],[% endring fra budsjett]]","v":{"v":0,"d":"0.00%"}}]
[null,"Totale avgifter [T]",{"$f":"Avgifter[[#Totals],[Forrige periode]]","v":0},{"$f":"Avgifter[[#Totals],[Budsjett]]","v":0},{"$f":"Avgifter[[#Totals],[Gjeldende periode]]","v":0},{"$f":"Avgifter[[#Totals],[Gjeldende periode som % av salg]]","v":{"v":0,"d":"0.00%"}},{"$f":"Avgifter[[#Totals],[% endring fra forrige periode]]","v":{"v":0,"d":"0.00%"}},{"$f":"Avgifter[[#Totals],[% endring fra budsjett]]","v":{"v":0,"d":"0.00%"}}]
[]
[null,"Bruttofortjeneste [L=J-K]",{"$f":"IFERROR(C7-C8,\"-\")","v":0},{"$f":"IFERROR(D7-D8,\"-\")","v":0},{"$f":"IFERROR(Total_salgsomsetning-Totalkostnad_salg,\"-\")","v":0},{"$f":"IFERROR(IF(Total_salgsomsetning=0,\"0,00%\",Total_bruttofortjeneste/Total_salgsomsetning),\"-\")","v":"0,00%"},{"$f":"IFERROR(IF(C16=Total_bruttofortjeneste,0,IF(Total_bruttofortjeneste>C16,ABS((Total_bruttofortjeneste/C16)-1),IF(AND(Total_bruttofortjeneste<C16,C16<0),-((Total_bruttofortjeneste/C16)-1),(Total_bruttofortjeneste/C16)-1))),\"-\")","v":{"v":0,"d":"0.00%"}},{"$f":"IFERROR(IF(D16=Total_bruttofortjeneste,0,IF(Total_bruttofortjeneste>D16,ABS((Total_bruttofortjeneste/D16)-1),IF(AND(Total_bruttofortjeneste<D16,D16<0),-((Total_bruttofortjeneste/D16)-1),(Total_bruttofortjeneste/D16)-1))),\"-\")","v":{"v":0,"d":"0.00%"}}]
[null,"Totale driftsutgifter [Q=M+N+O+P]",{"$f":"IFERROR(C9+C10+C11+C12,\"-\")","v":0},{"$f":"IFERROR(D9+D10+D11+D12,\"-\")","v":0},{"$f":"IFERROR(Total_salg_og_markedsføring+Total_forskning_og_utvikling+Total_generell_og_administrativ+Totale_andre_utgifter,\"-\")","v":0},{"$f":"IFERROR(IF(Total_salgsomsetning=0,\"0,00%\",Totale_driftsutgifter/Total_salgsomsetning),\"-\")","v":"0,00%"},{"$f":"IFERROR(IF(C17=Totale_driftsutgifter,0,IF(Totale_driftsutgifter>C17,ABS((Totale_driftsutgifter/C17)-1),IF(AND(Totale_driftsutgifter<C17,C17<0),-((Totale_driftsutgifter/C17)-1),(Totale_driftsutgifter/C17)-1))),\"-\")","v":{"v":0,"d":"0.00%"}},{"$f":"IFERROR(IF(D17=Totale_driftsutgifter,0,IF(Totale_driftsutgifter>D17,ABS((Totale_driftsutgifter/D17)-1),IF(AND(Totale_driftsutgifter<D17,D17<0),-((Totale_driftsutgifter/D17)-1),(Totale_driftsutgifter/D17)-1))),\"-\")","v":{"v":0,"d":"0.00%"}}]
[null,"Driftsinntekter  [R=L-Q]",{"$f":"IFERROR(C16-C17,\"-\")","v":0},{"$f":"IFERROR(D16-D17,\"-\")","v":0},{"$f":"IFERROR(Total_bruttofortjeneste-Totale_driftsutgifter,\"-\")","v":0},{"$f":"IFERROR(IF(Total_salgsomsetning=0,\"0,00%\",Totalinntekt_drift/Total_salgsomsetning),\"-\")","v":"0,00%"},{"$f":"IFERROR(IF(C18=Totalinntekt_drift,0,IF(Totalinntekt_drift>C18,ABS((Totalinntekt_drift/C18)-1),IF(AND(Totalinntekt_drift<C18,C18<0),-((Totalinntekt_drift/C18)-1),(Totalinntekt_drift/C18)-1))),\"-\")","v":{"v":0,"d":"0.00%"}},{"$f":"IFERROR(IF(D18=Totalinntekt_drift,0,IF(Totalinntekt_drift>D18,ABS((Totalinntekt_drift/D18)-1),IF(AND(Totalinntekt_drift<D18,D18<0),-((Totalinntekt_drift/D18)-1),(Totalinntekt_drift/D18)-1))),\"-\")","v":{"v":0,"d":"0.00%"}}]
[null,"Nettofortjeneste  [U=R+S-T]",{"$f":"IFERROR(C18+C13-C14,\"-\")","v":0},{"$f":"IFERROR(D18+D13-D14,\"-\")","v":0},{"$f":"Totalinntekt_drift+Total_annen_inntekt-Total_skatt","v":0},{"$f":"IFERROR(IF(Total_salgsomsetning=0,\"0,00%\",Nettofortjeneste/Total_salgsomsetning),\"-\")","v":"0,00%"},{"$f":"IFERROR(IF(C19=Nettofortjeneste,0,IF(Nettofortjeneste>C19,ABS((Nettofortjeneste/C19)-1),IF(AND(Nettofortjeneste<C19,C19<0),-((Nettofortjeneste/C19)-1),(Nettofortjeneste/C19)-1))),\"-\")","v":{"v":0,"d":"0.00%"}},{"$f":"IFERROR(IF(D19=Nettofortjeneste,0,IF(Nettofortjeneste>D19,ABS((Nettofortjeneste/D19)-1),IF(AND(Nettofortjeneste<D19,D19<0),-((Nettofortjeneste/D19)-1),(Nettofortjeneste/D19)-1))),\"-\")","v":{"v":0,"d":"0.00%"}}]

{"sheet":"Salg","index":1,"n_rows":13,"n_cols":9,"rows_kept":13,"merged":[[0,7,2,8]]}
[null,{"$f":"Arbeidsboktittel","v":"Oversikt over tap og fortjeneste"}]
[null,{"$f":"Firmanavn","v":"Firmanavn"},"Angitt i 000"]
[null,"Salgsomsetning",{"$f":"IFERROR(Salgsomsetning,\"-\")","v":0}]
[null,"Omsetningstype","Beskrivelse","Forrige periode","Budsjett","Gjeldende periode","Gjeldende periode som % av salg","% endring fra forrige periode","% endring fra budsjett"]
[null,"Salgsomsetning","Produkt/tjeneste 1",{"$nulls":3},{"$f":"IFERROR(IF(Salgsomsetning_1[[#Totals],[Gjeldende periode]]=0,\"-\",Salgsomsetning_1[Gjeldende periode]/Salgsomsetning),\"-\")","v":"-"},{"$f":"IFERROR(IF(Salgsomsetning_1[[#This Row],[Forrige periode]]=Salgsomsetning_1[[#This Row],[Gjeldende periode]],0,IF(Salgsomsetning_1[[#This Row],[Gjeldende periode]]>Salgsomsetning_1[[#This Row],[Forrige periode]],ABS((Salgsomsetning_1[[#This Row],[Gjeldende periode]]/Salgsomsetning_1[[#This Row],[Forrige periode]])-1),IF(AND(Salgsomsetning_1[[#This Row],[Gjeldende periode]]<Salgsomsetning_1[[#This Row],[Forrige periode]],Salgsomsetning_1[[#This Row],[Forrige periode]]<0),-((Salgsomsetning_1[[#This Row],[Gjeldende periode]]/Salgsomsetning_1[[#This Row],[Forrige periode]])-1),(Salgsomsetning_1[[#This Row],[Gjeldende periode]]/Salgsomsetning_1[[#This Row],[Forrige periode]])-1))),\"-\")","v":{"v":0,"d":"0.00%"}},{"$f":"IFERROR(IF(Salgsomsetning_1[[#This Row],[Budsjett]]=Salgsomsetning_1[[#This Row],[Gjeldende periode]],0,IF(Salgsomsetning_1[[#This Row],[Gjeldende periode]]>Salgsomsetning_1[[#This Row],[Budsjett]],ABS((Salgsomsetning_1[[#This Row],[Gjeldende periode]]/Salgsomsetning_1[[#This Row],[Budsjett]])-1),IF(AND(Salgsomsetning_1[[#This Row],[Gjeldende periode]]<Salgsomsetning_1[[#This Row],[Budsjett]],Salgsomsetning_1[[#This Row],[Budsjett]]<0),-((Salgsomsetning_1[[#This Row],[Gjeldende periode]]/Salgsomsetning_1[[#This Row],[Budsjett]])-1),(Salgsomsetning_1[[#This Row],[Gjeldende periode]]/Salgsomsetning_1[[#This Row],[Budsjett]])-1))),\"-\")","v":{"v":0,"d":"0.00%"}}]
[null,"Salgsomsetning","Produkt/tjeneste 2",{"$nulls":3},{"$f":"IFERROR(IF(Salgsomsetning_1[[#Totals],[Gjeldende periode]]=0,\"-\",Salgsomsetning_1[Gjeldende periode]/Salgsomsetning),\"-\")","v":"-"},{"$f":"IFERROR(IF(Salgsomsetning_1[[#This Row],[Forrige periode]]=Salgsomsetning_1[[#This Row],[Gjeldende periode]],0,IF(Salgsomsetning_1[[#This Row],[Gjeldende periode]]>Salgsomsetning_1[[#This Row],[Forrige periode]],ABS((Salgsomsetning_1[[#This Row],[Gjeldende periode]]/Salgsomsetning_1[[#This Row],[Forrige periode]])-1),IF(AND(Salgsomsetning_1[[#This Row],[Gjeldende periode]]<Salgsomsetning_1[[#This Row],[Forrige periode]],Salgsomsetning_1[[#This Row],[Forrige periode]]<0),-((Salgsomsetning_1[[#This Row],[Gjeldende periode]]/Salgsomsetning_1[[#This Row],[Forrige periode]])-1),(Salgsomsetning_1[[#This Row],[Gjeldende periode]]/Salgsomsetning_1[[#This Row],[Forrige periode]])-1))),\"-\")","v":{"v":0,"d":"0.00%"}},{"$f":"IFERROR(IF(Salgsomsetning_1[[#This Row],[Budsjett]]=Salgsomsetning_1[[#This Row],[Gjeldende periode]],0,IF(Salgsomsetning_1[[#This Row],[Gjeldende periode]]>Salgsomsetning_1[[#This Row],[Budsjett]],ABS((Salgsomsetning_1[[#This Row],[Gjeldende periode]]/Salgsomsetning_1[[#This Row],[Budsjett]])-1),IF(AND(Salgsomsetning_1[[#This Row],[Gjeldende periode]]<Salgsomsetning_1[[#This Row],[Budsjett]],Salgsomsetning_1[[#This Row],[Budsjett]]<0),-((Salgsomsetning_1[[#This Row],[Gjeldende periode]]/Salgsomsetning_1[[#This Row],[Budsjett]])-1),(Salgsomsetning_1[[#This Row],[Gjeldende periode]]/Salgsomsetning_1[[#This Row],[Budsjett]])-1))),\"-\")","v":{"v":0,"d":"0.00%"}}]
[null,"Salgsomsetning","Produkt/tjeneste 3",{"$nulls":3},{"$f":"IFERROR(IF(Salgsomsetning_1[[#Totals],[Gjeldende periode]]=0,\"-\",Salgsomsetning_1[Gjeldende periode]/Salgsomsetning),\"-\")","v":"-"},{"$f":"IFERROR(IF(Salgsomsetning_1[[#This Row],[Forrige periode]]=Salgsomsetning_1[[#This Row],[Gjeldende periode]],0,IF(Salgsomsetning_1[[#This Row],[Gjeldende periode]]>Salgsomsetning_1[[#This Row],[Forrige periode]],ABS((Salgsomsetning_1[[#This Row],[Gjeldende periode]]/Salgsomsetning_1[[#This Row],[Forrige periode]])-1),IF(AND(Salgsomsetning_1[[#This Row],[Gjeldende periode]]<Salgsomsetning_1[[#This Row],[Forrige periode]],Salgsomsetning_1[[#This Row],[Forrige periode]]<0),-((Salgsomsetning_1[[#This Row],[Gjeldende periode]]/Salgsomsetning_1[[#This Row],[Forrige periode]])-1),(Salgsomsetning_1[[#This Row],[Gjeldende periode]]/Salgsomsetning_1[[#This Row],[Forrige periode]])-1))),\"-\")","v":{"v":0,"d":"0.00%"}},{"$f":"IFERROR(IF(Salgsomsetning_1[[#This Row],[Budsjett]]=Salgsomsetning_1[[#This Row],[Gjeldende periode]],0,IF(Salgsomsetning_1[[#This Row],[Gjeldende periode]]>Salgsomsetning_1[[#This Row],[Budsjett]],ABS((Salgsomsetning_1[[#This Row],[Gjeldende periode]]/Salgsomsetning_1[[#This Row],[Budsjett]])-1),IF(AND(Salgsomsetning_1[[#This Row],[Gjeldende periode]]<Salgsomsetning_1[[#This Row],[Budsjett]],Salgsomsetning_1[[#This Row],[Budsjett]]<0),-((Salgsomsetning_1[[#This Row],[Gjeldende periode]]/Salgsomsetning_1[[#This Row],[Budsjett]])-1),(Salgsomsetning_1[[#This Row],[Gjeldende periode]]/Salgsomsetning_1[[#This Row],[Budsjett]])-1))),\"-\")","v":{"v":0,"d":"0.00%"}}]
[null,"Salgsomsetning","Produkt/tjeneste 4",{"$nulls":3},{"$f":"IFERROR(IF(Salgsomsetning_1[[#Totals],[Gjeldende periode]]=0,\"-\",Salgsomsetning_1[Gjeldende periode]/Salgsomsetning),\"-\")","v":"-"},{"$f":"IFERROR(IF(Salgsomsetning_1[[#This Row],[Forrige periode]]=Salgsomsetning_1[[#This Row],[Gjeldende periode]],0,IF(Salgsomsetning_1[[#This Row],[Gjeldende periode]]>Salgsomsetning_1[[#This Row],[Forrige periode]],ABS((Salgsomsetning_1[[#This Row],[Gjeldende periode]]/Salgsomsetning_1[[#This Row],[Forrige periode]])-1),IF(AND(Salgsomsetning_1[[#This Row],[Gjeldende periode]]<Salgsomsetning_1[[#This Row],[Forrige periode]],Salgsomsetning_1[[#This Row],[Forrige periode]]<0),-((Salgsomsetning_1[[#This Row],[Gjeldende periode]]/Salgsomsetning_1[[#This Row],[Forrige periode]])-1),(Salgsomsetning_1[[#This Row],[Gjeldende periode]]/Salgsomsetning_1[[#This Row],[Forrige periode]])-1))),\"-\")","v":{"v":0,"d":"0.00%"}},{"$f":"IFERROR(IF(Salgsomsetning_1[[#This Row],[Budsjett]]=Salgsomsetning_1[[#This Row],[Gjeldende periode]],0,IF(Salgsomsetning_1[[#This Row],[Gjeldende periode]]>Salgsomsetning_1[[#This Row],[Budsjett]],ABS((Salgsomsetning_1[[#This Row],[Gjeldende periode]]/Salgsomsetning_1[[#This Row],[Budsjett]])-1),IF(AND(Salgsomsetning_1[[#This Row],[Gjeldende periode]]<Salgsomsetning_1[[#This Row],[Budsjett]],Salgsomsetning_1[[#This Row],[Budsjett]]<0),-((Salgsomsetning_1[[#This Row],[Gjeldende periode]]/Salgsomsetning_1[[#This Row],[Budsjett]])-1),(Salgsomsetning_1[[#This Row],[Gjeldende periode]]/Salgsomsetning_1[[#This Row],[Budsjett]])-1))),\"-\")","v":{"v":0,"d":"0.00%"}}]
[null,"Kostnad for salg","Produkt/tjeneste 1",{"$nulls":3},{"$f":"IFERROR(IF(Salgsomsetning_1[[#Totals],[Gjeldende periode]]=0,\"-\",Salgsomsetning_1[Gjeldende periode]/Salgsomsetning),\"-\")","v":"-"},{"$f":"IFERROR(IF(Salgsomsetning_1[[#This Row],[Forrige periode]]=Salgsomsetning_1[[#This Row],[Gjeldende periode]],0,IF(Salgsomsetning_1[[#This Row],[Gjeldende periode]]>Salgsomsetning_1[[#This Row],[Forrige periode]],ABS((Salgsomsetning_1[[#This Row],[Gjeldende periode]]/Salgsomsetning_1[[#This Row],[Forrige periode]])-1),IF(AND(Salgsomsetning_1[[#This Row],[Gjeldende periode]]<Salgsomsetning_1[[#This Row],[Forrige periode]],Salgsomsetning_1[[#This Row],[Forrige periode]]<0),-((Salgsomsetning_1[[#This Row],[Gjeldende periode]]/Salgsomsetning_1[[#This Row],[Forrige periode]])-1),(Salgsomsetning_1[[#This Row],[Gjeldende periode]]/Salgsomsetning_1[[#This Row],[Forrige periode]])-1))),\"-\")","v":{"v":0,"d":"0.00%"}},{"$f":"IFERROR(IF(Salgsomsetning_1[[#This Row],[Budsjett]]=Salgsomsetning_1[[#This Row],[Gjeldende periode]],0,IF(Salgsomsetning_1[[#This Row],[Gjeldende periode]]>Salgsomsetning_1[[#This Row],[Budsjett]],ABS((Salgsomsetning_1[[#This Row],[Gjeldende periode]]/Salgsomsetning_1[[#This Row],[Budsjett]])-1),IF(AND(Salgsomsetning_1[[#This Row],[Gjeldende periode]]<Salgsomsetning_1[[#This Row],[Budsjett]],Salgsomsetning_1[[#This Row],[Budsjett]]<0),-((Salgsomsetning_1[[#This Row],[Gjeldende periode]]/Salgsomsetning_1[[#This Row],[Budsjett]])-1),(Salgsomsetning_1[[#This Row],[Gjeldende periode]]/Salgsomsetning_1[[#This Row],[Budsjett]])-1))),\"-\")","v":{"v":0,"d":"0.00%"}}]
[null,"Kostnad for salg","Produkt/tjeneste 2",{"$nulls":3},{"$f":"IFERROR(IF(Salgsomsetning_1[[#Totals],[Gjeldende periode]]=0,\"-\",Salgsomsetning_1[Gjeldende periode]/Salgsomsetning),\"-\")","v":"-"},{"$f":"IFERROR(IF(Salgsomsetning_1[[#This Row],[Forrige periode]]=Salgsomsetning_1[[#This Row],[Gjeldende periode]],0,IF(Salgsomsetning_1[[#This Row],[Gjeldende periode]]>Salgsomsetning_1[[#This Row],[Forrige periode]],ABS((Salgsomsetning_1[[#This Row],[Gjeldende periode]]/Salgsomsetning_1[[#This Row],[Forrige periode]])-1),IF(AND(Salgsomsetning_1[[#This Row],[Gjeldende periode]]<Salgsomsetning_1[[#This Row],[Forrige periode]],Salgsomsetning_1[[#This Row],[Forrige periode]]<0),-((Salgsomsetning_1[[#This Row],[Gjeldende periode]]/Salgsomsetning_1[[#This Row],[Forrige periode]])-1),(Salgsomsetning_1[[#This Row],[Gjeldende periode]]/Salgsomsetning_1[[#This Row],[Forrige periode]])-1))),\"-\")","v":{"v":0,"d":"0.00%"}},{"$f":"IFERROR(IF(Salgsomsetning_1[[#This Row],[Budsjett]]=Salgsomsetning_1[[#This Row],[Gjeldende periode]],0,IF(Salgsomsetning_1[[#This Row],[Gjeldende periode]]>Salgsomsetning_1[[#This Row],[Budsjett]],ABS((Salgsomsetning_1[[#This Row],[Gjeldende periode]]/Salgsomsetning_1[[#This Row],[Budsjett]])-1),IF(AND(Salgsomsetning_1[[#This Row],[Gjeldende periode]]<Salgsomsetning_1[[#This Row],[Budsjett]],Salgsomsetning_1[[#This Row],[Budsjett]]<0),-((Salgsomsetning_1[[#This Row],[Gjeldende periode]]/Salgsomsetning_1[[#This Row],[Budsjett]])-1),(Salgsomsetning_1[[#This Row],[Gjeldende periode]]/Salgsomsetning_1[[#This Row],[Budsjett]])-1))),\"-\")","v":{"v":0,"d":"0.00%"}}]
[null,"Kostnad for salg","Produkt/tjeneste 3",{"$nulls":3},{"$f":"IFERROR(IF(Salgsomsetning_1[[#Totals],[Gjeldende periode]]=0,\"-\",Salgsomsetning_1[Gjeldende periode]/Salgsomsetning),\"-\")","v":"-"},{"$f":"IFERROR(IF(Salgsomsetning_1[[#This Row],[Forrige periode]]=Salgsomsetning_1[[#This Row],[Gjeldende periode]],0,IF(Salgsomsetning_1[[#This Row],[Gjeldende periode]]>Salgsomsetning_1[[#This Row],[Forrige periode]],ABS((Salgsomsetning_1[[#This Row],[Gjeldende periode]]/Salgsomsetning_1[[#This Row],[Forrige periode]])-1),IF(AND(Salgsomsetning_1[[#This Row],[Gjeldende periode]]<Salgsomsetning_1[[#This Row],[Forrige periode]],Salgsomsetning_1[[#This Row],[Forrige periode]]<0),-((Salgsomsetning_1[[#This Row],[Gjeldende periode]]/Salgsomsetning_1[[#This Row],[Forrige periode]])-1),(Salgsomsetning_1[[#This Row],[Gjeldende periode]]/Salgsomsetning_1[[#This Row],[Forrige periode]])-1))),\"-\")","v":{"v":0,"d":"0.00%"}},{"$f":"IFERROR(IF(Salgsomsetning_1[[#This Row],[Budsjett]]=Salgsomsetning_1[[#This Row],[Gjeldende periode]],0,IF(Salgsomsetning_1[[#This Row],[Gjeldende periode]]>Salgsomsetning_1[[#This Row],[Budsjett]],ABS((Salgsomsetning_1[[#This Row],[Gjeldende periode]]/Salgsomsetning_1[[#This Row],[Budsjett]])-1),IF(AND(Salgsomsetning_1[[#This Row],[Gjeldende periode]]<Salgsomsetning_1[[#This Row],[Budsjett]],Salgsomsetning_1[[#This Row],[Budsjett]]<0),-((Salgsomsetning_1[[#This Row],[Gjeldende periode]]/Salgsomsetning_1[[#This Row],[Budsjett]])-1),(Salgsomsetning_1[[#This Row],[Gjeldende periode]]/Salgsomsetning_1[[#This Row],[Budsjett]])-1))),\"-\")","v":{"v":0,"d":"0.00%"}}]
[null,"Kostnad for salg","Produkt/tjeneste 4",{"$nulls":3},{"$f":"IFERROR(IF(Salgsomsetning_1[[#Totals],[Gjeldende periode]]=0,\"-\",Salgsomsetning_1[Gjeldende periode]/Salgsomsetning),\"-\")","v":"-"},{"$f":"IFERROR(IF(Salgsomsetning_1[[#This Row],[Forrige periode]]=Salgsomsetning_1[[#This Row],[Gjeldende periode]],0,IF(Salgsomsetning_1[[#This Row],[Gjeldende periode]]>Salgsomsetning_1[[#This Row],[Forrige periode]],ABS((Salgsomsetning_1[[#This Row],[Gjeldende periode]]/Salgsomsetning_1[[#This Row],[Forrige periode]])-1),IF(AND(Salgsomsetning_1[[#This Row],[Gjeldende periode]]<Salgsomsetning_1[[#This Row],[Forrige periode]],Salgsomsetning_1[[#This Row],[Forrige periode]]<0),-((Salgsomsetning_1[[#This Row],[Gjeldende periode]]/Salgsomsetning_1[[#This Row],[Forrige periode]])-1),(Salgsomsetning_1[[#This Row],[Gjeldende periode]]/Salgsomsetning_1[[#This Row],[Forrige periode]])-1))),\"-\")","v":{"v":0,"d":"0.00%"}},{"$f":"IFERROR(IF(Salgsomsetning_1[[#This Row],[Budsjett]]=Salgsomsetning_1[[#This Row],[Gjeldende periode]],0,IF(Salgsomsetning_1[[#This Row],[Gjeldende periode]]>Salgsomsetning_1[[#This Row],[Budsjett]],ABS((Salgsomsetning_1[[#This Row],[Gjeldende periode]]/Salgsomsetning_1[[#This Row],[Budsjett]])-1),IF(AND(Salgsomsetning_1[[#This Row],[Gjeldende periode]]<Salgsomsetning_1[[#This Row],[Budsjett]],Salgsomsetning_1[[#This Row],[Budsjett]]<0),-((Salgsomsetning_1[[#This Row],[Gjeldende periode]]/Salgsomsetning_1[[#This Row],[Budsjett]])-1),(Salgsomsetning_1[[#This Row],[Gjeldende periode]]/Salgsomsetning_1[[#This Row],[Budsjett]])-1))),\"-\")","v":{"v":0,"d":"0.00%"}}]
[null,"Total salgsomsetning",null,{"$f":"SUBTOTAL(109,Salgsomsetning_1[Forrige periode])","v":0},{"$f":"SUBTOTAL(109,Salgsomsetning_1[Budsjett])","v":0},{"$f":"SUBTOTAL(109,Salgsomsetning_1[Gjeldende periode])","v":0},{"$f":"SUBTOTAL(109,Salgsomsetning_1[Gjeldende periode som % av salg])","v":{"v":0,"d":"0.00%"}},{"$f":"SUBTOTAL(109,Salgsomsetning_1[% endring fra forrige periode])","v":{"v":0,"d":"0.00%"}},{"$f":"SUBTOTAL(109,Salgsomsetning_1[% endring fra budsjett])","v":{"v":0,"d":"0.00%"}}]

{"sheet":"Inntekter","index":2,"n_rows":7,"n_cols":9,"rows_kept":7,"merged":[[0,7,2,8]]}
[null,{"$f":"Arbeidsboktittel","v":"Oversikt over tap og fortjeneste"}]
[null,{"$f":"Firmanavn","v":"Firmanavn"},"Angitt i 000"]
[null,"Inntekter",{"$f":"IFERROR(Inntekter[[#Totals],[Gjeldende periode]],\"-\")","v":0}]
[null,"Inntektstype","Beskrivelse","Forrige periode","Budsjett","Gjeldende periode","Gjeldende periode som % av salg","% endring fra forrige periode","% endring fra budsjett"]
[null,"Inntekter","Annen inntekt",{"$nulls":3},{"$f":"IFERROR(IF(Salgsomsetning=0,\"-\",Inntekter[Gjeldende periode]/Salgsomsetning),\"-\")","v":"-"},{"$f":"IFERROR(IF(Inntekter[[#This Row],[Forrige periode]]=Inntekter[[#This Row],[Gjeldende periode]],0,IF(Inntekter[[#This Row],[Gjeldende periode]]>Inntekter[[#This Row],[Forrige periode]],ABS((Inntekter[[#This Row],[Gjeldende periode]]/Inntekter[[#This Row],[Forrige periode]])-1),IF(AND(Inntekter[[#This Row],[Gjeldende periode]]<Inntekter[[#This Row],[Forrige periode]],Inntekter[[#This Row],[Forrige periode]]<0),-((Inntekter[[#This Row],[Gjeldende periode]]/Inntekter[[#This Row],[Forrige periode]])-1),(Inntekter[[#This Row],[Gjeldende periode]]/Inntekter[[#This Row],[Forrige periode]])-1))),\"-\")","v":{"v":0,"d":"0.00%"}},{"$f":"IFERROR(IF(Inntekter[[#This Row],[Budsjett]]=Inntekter[[#This Row],[Gjeldende periode]],0,IF(Inntekter[[#This Row],[Gjeldende periode]]>Inntekter[[#This Row],[Budsjett]],ABS((Inntekter[[#This Row],[Gjeldende periode]]/Inntekter[[#This Row],[Budsjett]])-1),IF(AND(Inntekter[[#This Row],[Gjeldende periode]]<Inntekter[[#This Row],[Budsjett]],Inntekter[[#This Row],[Budsjett]]<0),-((Inntekter[[#This Row],[Gjeldende periode]]/Inntekter[[#This Row],[Budsjett]])-1),(Inntekter[[#This Row],[Gjeldende periode]]/Inntekter[[#This Row],[Budsjett]])-1))),\"-\")","v":{"v":0,"d":"0.00%"}}]
[{"$nulls":6},{"$f":"IFERROR(IF(Salgsomsetning=0,\"-\",Inntekter[Gjeldende periode]/Salgsomsetning),\"-\")","v":"-"},{"$f":"IFERROR(IF(Inntekter[[#This Row],[Forrige periode]]=Inntekter[[#This Row],[Gjeldende periode]],0,IF(Inntekter[[#This Row],[Gjeldende periode]]>Inntekter[[#This Row],[Forrige periode]],ABS((Inntekter[[#This Row],[Gjeldende periode]]/Inntekter[[#This Row],[Forrige periode]])-1),IF(AND(Inntekter[[#This Row],[Gjeldende periode]]<Inntekter[[#This Row],[Forrige periode]],Inntekter[[#This Row],[Forrige periode]]<0),-((Inntekter[[#This Row],[Gjeldende periode]]/Inntekter[[#This Row],[Forrige periode]])-1),(Inntekter[[#This Row],[Gjeldende periode]]/Inntekter[[#This Row],[Forrige periode]])-1))),\"-\")","v":{"v":0,"d":"0.00%"}},{"$f":"IFERROR(IF(Inntekter[[#This Row],[Budsjett]]=Inntekter[[#This Row],[Gjeldende periode]],0,IF(Inntekter[[#This Row],[Gjeldende periode]]>Inntekter[[#This Row],[Budsjett]],ABS((Inntekter[[#This Row],[Gjeldende periode]]/Inntekter[[#This Row],[Budsjett]])-1),IF(AND(Inntekter[[#This Row],[Gjeldende periode]]<Inntekter[[#This Row],[Budsjett]],Inntekter[[#This Row],[Budsjett]]<0),-((Inntekter[[#This Row],[Gjeldende periode]]/Inntekter[[#This Row],[Budsjett]])-1),(Inntekter[[#This Row],[Gjeldende periode]]/Inntekter[[#This Row],[Budsjett]])-1))),\"-\")","v":{"v":0,"d":"0.00%"}}]
[null,"Totale salgsinntekter",null,{"$f":"SUBTOTAL(109,Inntekter[Forrige periode])","v":0},{"$f":"SUBTOTAL(109,Inntekter[Budsjett])","v":0},{"$f":"SUBTOTAL(109,Inntekter[Gjeldende periode])","v":0},{"$f":"SUBTOTAL(109,Inntekter[Gjeldende periode som % av salg])","v":{"v":0,"d":"0.00%"}},{"$f":"SUBTOTAL(109,Inntekter[% endring fra forrige periode])","v":{"v":0,"d":"0.00%"}},{"$f":"SUBTOTAL(109,Inntekter[% endring fra budsjett])","v":{"v":0,"d":"0.00%"}}]

{"sheet":"Utgifter","index":3,"n_rows":25,"n_cols":9,"rows_kept":25,"merged":[[0,7,2,8]]}
[null,{"$f":"Arbeidsboktittel","v":"Oversikt over tap og fortjeneste"}]
[null,{"$f":"Firmanavn","v":"Firmanavn"},"Angitt i 000"]
[null,"Driftskostnader",{"$f":"IFERROR(Driftsutgifter[[#Totals],[Gjeldende periode]],\"-\")","v":0}]
[null,"Utgiftstype","Beskrivelse","Forrige periode","Budsjett","Gjeldende periode","Gjeldende periode som % av salg","% endring fra forrige periode","% endring fra budsjett"]
[null,"Salg og markedsføring","Annonsering",{"$nulls":3},{"$f":"IFERROR(IF(Salgsomsetning=0,\"-\",Driftsutgifter[Gjeldende periode]/Salgsomsetning),\"-\")","v":"-"},{"$f":"IFERROR(IF(Driftsutgifter[[#This Row],[Forrige periode]]=Driftsutgifter[[#This Row],[Gjeldende periode]],0,IF(Driftsutgifter[[#This Row],[Gjeldende periode]]>Driftsutgifter[[#This Row],[Forrige periode]],ABS((Driftsutgifter[[#This Row],[Gjeldende periode]]/Driftsutgifter[[#This Row],[Forrige periode]])-1),IF(AND(Driftsutgifter[[#This Row],[Gjeldende periode]]<Driftsutgifter[[#This Row],[Forrige periode]],Driftsutgifter[[#This Row],[Forrige periode]]<0),-((Driftsutgifter[[#This Row],[Gjeldende periode]]/Driftsutgifter[[#This Row],[Forrige periode]])-1),(Driftsutgifter[[#This Row],[Gjeldende periode]]/Driftsutgifter[[#This Row],[Forrige periode]])-1))),\"-\")","v":{"v":0,"d":"0.00%"}},{"$f":"IFERROR(IF(Driftsutgifter[[#This Row],[Budsjett]]=Driftsutgifter[[#This Row],[Gjeldende periode]],0,IF(Driftsutgifter[[#This Row],[Gjeldende periode]]>Driftsutgifter[[#This Row],[Budsjett]],ABS((Driftsutgifter[[#This Row],[Gjeldende periode]]/Driftsutgifter[[#This Row],[Budsjett]])-1),IF(AND(Driftsutgifter[[#This Row],[Gjeldende periode]]<Driftsutgifter[[#This Row],[Budsjett]],Driftsutgifter[[#This Row],[Budsjett]]<0),-((Driftsutgifter[[#This Row],[Gjeldende periode]]/Driftsutgifter[[#This Row],[Budsjett]])-1),(Driftsutgifter[[#This Row],[Gjeldende periode]]/Driftsutgifter[[#This Row],[Budsjett]])-1))),\"-\")","v":{"v":0,"d":"0.00%"}}]
[null,"Salg og markedsføring","Direkte markedsføring",{"$nulls":3},{"$f":"IFERROR(IF(Salgsomsetning=0,\"-\",Driftsutgifter[Gjeldende periode]/Salgsomsetning),\"-\")","v":"-"},{"$f":"IFERROR(IF(Driftsutgifter[[#This Row],[Forrige periode]]=Driftsutgifter[[#This Row],[Gjeldende periode]],0,IF(Driftsutgifter[[#This Row],[Gjeldende periode]]>Driftsutgifter[[#This Row],[Forrige periode]],ABS((Driftsutgifter[[#This Row],[Gjeldende periode]]/Driftsutgifter[[#This Row],[Forrige periode]])-1),IF(AND(Driftsutgifter[[#This Row],[Gjeldende periode]]<Driftsutgifter[[#This Row],[Forrige periode]],Driftsutgifter[[#This Row],[Forrige periode]]<0),-((Driftsutgifter[[#This Row],[Gjeldende periode]]/Driftsutgifter[[#This Row],[Forrige periode]])-1),(Driftsutgifter[[#This Row],[Gjeldende periode]]/Driftsutgifter[[#This Row],[Forrige periode]])-1))),\"-\")","v":{"v":0,"d":"0.00%"}},{"$f":"IFERROR(IF(Driftsutgifter[[#This Row],[Budsjett]]=Driftsutgifter[[#This Row],[Gjeldende periode]],0,IF(Driftsutgifter[[#This Row],[Gjeldende periode]]>Driftsutgifter[[#This Row],[Budsjett]],ABS((Driftsutgifter[[#This Row],[Gjeldende periode]]/Driftsutgifter[[#This Row],[Budsjett]])-1),IF(AND(Driftsutgifter[[#This Row],[Gjeldende periode]]<Driftsutgifter[[#This Row],[Budsjett]],Driftsutgifter[[#This Row],[Budsjett]]<0),-((Driftsutgifter[[#This Row],[Gjeldende periode]]/Driftsutgifter[[#This Row],[Budsjett]])-1),(Driftsutgifter[[#This Row],[Gjeldende periode]]/Driftsutgifter[[#This Row],[Budsjett]])-1))),\"-\")","v":{"v":0,"d":"0.00%"}}]
[null,"Salg og markedsføring","Andre utgifter (spesifiser)",{"$nulls":3},{"$f":"IFERROR(IF(Salgsomsetning=0,\"-\",Driftsutgifter[Gjeldende periode]/Salgsomsetning),\"-\")","v":"-"},{"$f":"IFERROR(IF(Driftsutgifter[[#This Row],[Forrige periode]]=Driftsutgifter[[#This Row],[Gjeldende periode]],0,IF(Driftsutgifter[[#This Row],[Gjeldende periode]]>Driftsutgifter[[#This Row],[Forrige periode]],ABS((Driftsutgifter[[#This Row],[Gjeldende periode]]/Driftsutgifter[[#This Row],[Forrige periode]])-1),IF(AND(Driftsutgifter[[#This Row],[Gjeldende periode]]<Driftsutgifter[[#This Row],[Forrige periode]],Driftsutgifter[[#This Row],[Forrige periode]]<0),-((Driftsutgifter[[#This Row],[Gjeldende periode]]/Driftsutgifter[[#This Row],[Forrige periode]])-1),(Driftsutgifter[[#This Row],[Gjeldende periode]]/Driftsutgifter[[#This Row],[Forrige periode]])-1))),\"-\")","v":{"v":0,"d":"0.00%"}},{"$f":"IFERROR(IF(Driftsutgifter[[#This Row],[Budsjett]]=Driftsutgifter[[#This Row],[Gjeldende periode]],0,IF(Driftsutgifter[[#This Row],[Gjeldende periode]]>Driftsutgifter[[#This Row],[Budsjett]],ABS((Driftsutgifter[[#This Row],[Gjeldende periode]]/Driftsutgifter[[#This Row],[Budsjett]])-1),IF(AND(Driftsutgifter[[#This Row],[Gjeldende periode]]<Driftsutgifter[[#This Row],[Budsjett]],Driftsutgifter[[#This Row],[Budsjett]]<0),-((Driftsutgifter[[#This Row],[Gjeldende periode]]/Driftsutgifter[[#This Row],[Budsjett]])-1),(Driftsutgifter[[#This Row],[Gjeldende periode]]/Driftsutgifter[[#This Row],[Budsjett]])-1))),\"-\")","v":{"v":0,"d":"0.00%"}}]
[null,"Salg og markedsføring","Andre utgifter (spesifiser)",{"$nulls":3},{"$f":"IFERROR(IF(Salgsomsetning=0,\"-\",Driftsutgifter[Gjeldende periode]/Salgsomsetning),\"-\")","v":"-"},{"$f":"IFERROR(IF(Driftsutgifter[[#This Row],[Forrige periode]]=Driftsutgifter[[#This Row],[Gjeldende periode]],0,IF(Driftsutgifter[[#This Row],[Gjeldende periode]]>Driftsutgifter[[#This Row],[Forrige periode]],ABS((Driftsutgifter[[#This Row],[Gjeldende periode]]/Driftsutgifter[[#This Row],[Forrige periode]])-1),IF(AND(Driftsutgifter[[#This Row],[Gjeldende periode]]<Driftsutgifter[[#This Row],[Forrige periode]],Driftsutgifter[[#This Row],[Forrige periode]]<0),-((Driftsutgifter[[#This Row],[Gjeldende periode]]/Driftsutgifter[[#This Row],[Forrige periode]])-1),(Driftsutgifter[[#This Row],[Gjeldende periode]]/Driftsutgifter[[#This Row],[Forrige periode]])-1))),\"-\")","v":{"v":0,"d":"0.00%"}},{"$f":"IFERROR(IF(Driftsutgifter[[#This Row],[Budsjett]]=Driftsutgifter[[#This Row],[Gjeldende periode]],0,IF(Driftsutgifter[[#This Row],[Gjeldende periode]]>Driftsutgifter[[#This Row],[Budsjett]],ABS((Driftsutgifter[[#This Row],[Gjeldende periode]]/Driftsutgifter[[#This Row],[Budsjett]])-1),IF(AND(Driftsutgifter[[#This Row],[Gjeldende periode]]<Driftsutgifter[[#This Row],[Budsjett]],Driftsutgifter[[#This Row],[Budsjett]]<0),-((Driftsutgifter[[#This Row],[Gjeldende periode]]/Driftsutgifter[[#This Row],[Budsjett]])-1),(Driftsutgifter[[#This Row],[Gjeldende periode]]/Driftsutgifter[[#This Row],[Budsjett]])-1))),\"-\")","v":{"v":0,"d":"0.00%"}}]
[null,"Forskning og utvikling","Teknologilisenser",{"$nulls":3},{"$f":"IFERROR(IF(Salgsomsetning=0,\"-\",Driftsutgifter[Gjeldende periode]/Salgsomsetning),\"-\")","v":"-"},{"$f":"IFERROR(IF(Driftsutgifter[[#This Row],[Forrige periode]]=Driftsutgifter[[#This Row],[Gjeldende periode]],0,IF(Driftsutgifter[[#This Row],[Gjeldende periode]]>Driftsutgifter[[#This Row],[Forrige periode]],ABS((Driftsutgifter[[#This Row],[Gjeldende periode]]/Driftsutgifter[[#This Row],[Forrige periode]])-1),IF(AND(Driftsutgifter[[#This Row],[Gjeldende periode]]<Driftsutgifter[[#This Row],[Forrige periode]],Driftsutgifter[[#This Row],[Forrige periode]]<0),-((Driftsutgifter[[#This Row],[Gjeldende periode]]/Driftsutgifter[[#This Row],[Forrige periode]])-1),(Driftsutgifter[[#This Row],[Gjeldende periode]]/Driftsutgifter[[#This Row],[Forrige periode]])-1))),\"-\")","v":{"v":0,"d":"0.00%"}},{"$f":"IFERROR(IF(Driftsutgifter[[#This Row],[Budsjett]]=Driftsutgifter[[#This Row],[Gjeldende periode]],0,IF(Driftsutgifter[[#This Row],[Gjeldende periode]]>Driftsutgifter[[#This Row],[Budsjett]],ABS((Driftsutgifter[[#This Row],[Gjeldende periode]]/Driftsutgifter[[#This Row],[Budsjett]])-1),IF(AND(Driftsutgifter[[#This Row],[Gjeldende periode]]<Driftsutgifter[[#This Row],[Budsjett]],Driftsutgifter[[#This Row],[Budsjett]]<0),-((Driftsutgifter[[#This Row],[Gjeldende periode]]/Driftsutgifter[[#This Row],[Budsjett]])-1),(Driftsutgifter[[#This Row],[Gjeldende periode]]/Driftsutgifter[[#This Row],[Budsjett]])-1))),\"-\")","v":{"v":0,"d":"0.00%"}}]
[null,"Forskning og utvikling","Patenter ",{"$nulls":3},{"$f":"IFERROR(IF(Salgsomsetning=0,\"-\",Driftsutgifter[Gjeldende periode]/Salgsomsetning),\"-\")","v":"-"},{"$f":"IFERROR(IF(Driftsutgifter[[#This Row],[Forrige periode]]=Driftsutgifter[[#This Row],[Gjeldende periode]],0,IF(Driftsutgifter[[#This Row],[Gjeldende periode]]>Driftsutgifter[[#This Row],[Forrige periode]],ABS((Driftsutgifter[[#This Row],[Gjeldende periode]]/Driftsutgifter[[#This Row],[Forrige periode]])-1),IF(AND(Driftsutgifter[[#This Row],[Gjeldende periode]]<Driftsutgifter[[#This Row],[Forrige periode]],Driftsutgifter[[#This Row],[Forrige periode]]<0),-((Driftsutgifter[[#This Row],[Gjeldende periode]]/Driftsutgifter[[#This Row],[Forrige periode]])-1),(Driftsutgifter[[#This Row],[Gjeldende periode]]/Driftsutgifter[[#This Row],[Forrige periode]])-1))),\"-\")","v":{"v":0,"d":"0.00%"}},{"$f":"IFERROR(IF(Driftsutgifter[[#This Row],[Budsjett]]=Driftsutgifter[[#This Row],[Gjeldende periode]],0,IF(Driftsutgifter[[#This Row],[Gjeldende periode]]>Driftsutgifter[[#This Row],[Budsjett]],ABS((Driftsutgifter[[#This Row],[Gjeldende periode]]/Driftsutgifter[[#This Row],[Budsjett]])-1),IF(AND(Driftsutgifter[[#This Row],[Gjeldende periode]]<Driftsutgifter[[#This Row],[Budsjett]],Driftsutgifter[[#This Row],[Budsjett]]<0),-((Driftsutgifter[[#This Row],[Gjeldende periode]]/Driftsutgifter[[#This Row],[Budsjett]])-1),(Driftsutgifter[[#This Row],[Gjeldende periode]]/Driftsutgifter[[#This Row],[Budsjett]])-1))),\"-\")","v":{"v":0,"d":"0.00%"}}]
[null,"Forskning og utvikling","Andre utgifter (spesifiser)",{"$nulls":3},{"$f":"IFERROR(IF(Salgsomsetning=0,\"-\",Driftsutgifter[Gjeldende periode]/Salgsomsetning),\"-\")","v":"-"},{"$f":"IFERROR(IF(Driftsutgifter[[#This Row],[Forrige periode]]=Driftsutgifter[[#This Row],[Gjeldende periode]],0,IF(Driftsutgifter[[#This Row],[Gjeldende periode]]>Driftsutgifter[[#This Row],[Forrige periode]],ABS((Driftsutgifter[[#This Row],[Gjeldende periode]]/Driftsutgifter[[#This Row],[Forrige periode]])-1),IF(AND(Driftsutgifter[[#This Row],[Gjeldende periode]]<Driftsutgifter[[#This Row],[Forrige periode]],Driftsutgifter[[#This Row],[Forrige periode]]<0),-((Driftsutgifter[[#This Row],[Gjeldende periode]]/Driftsutgifter[[#This Row],[Forrige periode]])-1),(Driftsutgifter[[#This Row],[Gjeldende periode]]/Driftsutgifter[[#This Row],[Forrige periode]])-1))),\"-\")","v":{"v":0,"d":"0.00%"}},{"$f":"IFERROR(IF(Driftsutgifter[[#This Row],[Budsjett]]=Driftsutgifter[[#This Row],[Gjeldende periode]],0,IF(Driftsutgifter[[#This Row],[Gjeldende periode]]>Driftsutgifter[[#This Row],[Budsjett]],ABS((Driftsutgifter[[#This Row],[Gjeldende periode]]/Driftsutgifter[[#This Row],[Budsjett]])-1),IF(AND(Driftsutgifter[[#This Row],[Gjeldende periode]]<Driftsutgifter[[#This Row],[Budsjett]],Driftsutgifter[[#This Row],[Budsjett]]<0),-((Driftsutgifter[[#This Row],[Gjeldende periode]]/Driftsutgifter[[#This Row],[Budsjett]])-1),(Driftsutgifter[[#This Row],[Gjeldende periode]]/Driftsutgifter[[#This Row],[Budsjett]])-1))),\"-\")","v":{"v":0,"d":"0.00%"}}]
[null,"Forskning og utvikling","Andre utgifter (spesifiser)",{"$nulls":3},{"$f":"IFERROR(IF(Salgsomsetning=0,\"-\",Driftsutgifter[Gjeldende periode]/Salgsomsetning),\"-\")","v":"-"},{"$f":"IFERROR(IF(Driftsutgifter[[#This Row],[Forrige periode]]=Driftsutgifter[[#This Row],[Gjeldende periode]],0,IF(Driftsutgifter[[#This Row],[Gjeldende periode]]>Driftsutgifter[[#This Row],[Forrige periode]],ABS((Driftsutgifter[[#This Row],[Gjeldende periode]]/Driftsutgifter[[#This Row],[Forrige periode]])-1),IF(AND(Driftsutgifter[[#This Row],[Gjeldende periode]]<Driftsutgifter[[#This Row],[Forrige periode]],Driftsutgifter[[#This Row],[Forrige periode]]<0),-((Driftsutgifter[[#This Row],[Gjeldende periode]]/Driftsutgifter[[#This Row],[Forrige periode]])-1),(Driftsutgifter[[#This Row],[Gjeldende periode]]/Driftsutgifter[[#This Row],[Forrige periode]])-1))),\"-\")","v":{"v":0,"d":"0.00%"}},{"$f":"IFERROR(IF(Driftsutgifter[[#This Row],[Budsjett]]=Driftsutgifter[[#This Row],[Gjeldende periode]],0,IF(Driftsutgifter[[#This Row],[Gjeldende periode]]>Driftsutgifter[[#This Row],[Budsjett]],ABS((Driftsutgifter[[#This Row],[Gjeldende periode]]/Driftsutgifter[[#This Row],[Budsjett]])-1),IF(AND(Driftsutgifter[[#This Row],[Gjeldende periode]]<Driftsutgifter[[#This Row],[Budsjett]],Driftsutgifter[[#This Row],[Budsjett]]<0),-((Driftsutgifter[[#This Row],[Gjeldende periode]]/Driftsutgifter[[#This Row],[Budsjett]])-1),(Driftsutgifter[[#This Row],[Gjeldende periode]]/Driftsutgifter[[#This Row],[Budsjett]])-1))),\"-\")","v":{"v":0,"d":"0.00%"}}]
[null,"Generell og administrativ","Lønn",{"$nulls":3},{"$f":"IFERROR(IF(Salgsomsetning=0,\"-\",Driftsutgifter[Gjeldende periode]/Salgsomsetning),\"-\")","v":"-"},{"$f":"IFERROR(IF(Driftsutgifter[[#This Row],[Forrige periode]]=Driftsutgifter[[#This Row],[Gjeldende periode]],0,IF(Driftsutgifter[[#This Row],[Gjeldende periode]]>Driftsutgifter[[#This Row],[Forrige periode]],ABS((Driftsutgifter[[#This Row],[Gjeldende periode]]/Driftsutgifter[[#This Row],[Forrige periode]])-1),IF(AND(Driftsutgifter[[#This Row],[Gjeldende periode]]<Driftsutgifter[[#This Row],[Forrige periode]],Driftsutgifter[[#This Row],[Forrige periode]]<0),-((Driftsutgifter[[#This Row],[Gjeldende periode]]/Driftsutgifter[[#This Row],[Forrige periode]])-1),(Driftsutgifter[[#This Row],[Gjeldende periode]]/Driftsutgifter[[#This Row],[Forrige periode]])-1))),\"-\")","v":{"v":0,"d":"0.00%"}},{"$f":"IFERROR(IF(Driftsutgifter[[#This Row],[Budsjett]]=Driftsutgifter[[#This Row],[Gjeldende periode]],0,IF(Driftsutgifter[[#This Row],[Gjeldende periode]]>Driftsutgifter[[#This Row],[Budsjett]],ABS((Driftsutgifter[[#This Row],[Gjeldende periode]]/Driftsutgifter[[#This Row],[Budsjett]])-1),IF(AND(Driftsutgifter[[#This Row],[Gjeldende periode]]<Driftsutgifter[[#This Row],[Budsjett]],Driftsutgifter[[#This Row],[Budsjett]]<0),-((Driftsutgifter[[#This Row],[Gjeldende periode]]/Driftsutgifter[[#This Row],[Budsjett]])-1),(Driftsutgifter[[#This Row],[Gjeldende periode]]/Driftsutgifter[[#This Row],[Budsjett]])-1))),\"-\")","v":{"v":0,"d":"0.00%"}}]
[null,"Generell og administrativ","Eksterne tjenester",{"$nulls":3},{"$f":"IFERROR(IF(Salgsomsetning=0,\"-\",Driftsutgifter[Gjeldende periode]/Salgsomsetning),\"-\")","v":"-"},{"$f":"IFERROR(IF(Driftsutgifter[[#This Row],[Forrige periode]]=Driftsutgifter[[#This Row],[Gjeldende periode]],0,IF(Driftsutgifter[[#This Row],[Gjeldende periode]]>Driftsutgifter[[#This Row],[Forrige periode]],ABS((Driftsutgifter[[#This Row],[Gjeldende periode]]/Driftsutgifter[[#This Row],[Forrige periode]])-1),IF(AND(Driftsutgifter[[#This Row],[Gjeldende periode]]<Driftsutgifter[[#This Row],[Forrige periode]],Driftsutgifter[[#This Row],[Forrige periode]]<0),-((Driftsutgifter[[#This Row],[Gjeldende periode]]/Driftsutgifter[[#This Row],[Forrige periode]])-1),(Driftsutgifter[[#This Row],[Gjeldende periode]]/Driftsutgifter[[#This Row],[Forrige periode]])-1))),\"-\")","v":{"v":0,"d":"0.00%"}},{"$f":"IFERROR(IF(Driftsutgifter[[#This Row],[Budsjett]]=Driftsutgifter[[#This Row],[Gjeldende periode]],0,IF(Driftsutgifter[[#This Row],[Gjeldende periode]]>Driftsutgifter[[#This Row],[Budsjett]],ABS((Driftsutgifter[[#This Row],[Gjeldende periode]]/Driftsutgifter[[#This Row],[Budsjett]])-1),IF(AND(Driftsutgifter[[#This Row],[Gjeldende periode]]<Driftsutgifter[[#This Row],[Budsjett]],Driftsutgifter[[#This Row],[Budsjett]]<0),-((Driftsutgifter[[#This Row],[Gjeldende periode]]/Driftsutgifter[[#This Row],[Budsjett]])-1),(Driftsutgifter[[#This Row],[Gjeldende periode]]/Driftsutgifter[[#This Row],[Budsjett]])-1))),\"-\")","v":{"v":0,"d":"0.00%"}}]
[null,"Generell og administrativ","Utstyr",{"$nulls":3},{"$f":"IFERROR(IF(Salgsomsetning=0,\"-\",Driftsutgifter[Gjeldende periode]/Salgsomsetning),\"-\")","v":"-"},{"$f":"IFERROR(IF(Driftsutgifter[[#This Row],[Forrige periode]]=Driftsutgifter[[#This Row],[Gjeldende periode]],0,IF(Driftsutgifter[[#This Row],[Gjeldende periode]]>Driftsutgifter[[#This Row],[Forrige periode]],ABS((Driftsutgifter[[#This Row],[Gjeldende periode]]/Driftsutgifter[[#This Row],[Forrige periode]])-1),IF(AND(Driftsutgifter[[#This Row],[Gjeldende periode]]<Driftsutgifter[[#This Row],[Forrige periode]],Driftsutgifter[[#This Row],[Forrige periode]]<0),-((Driftsutgifter[[#This Row],[Gjeldende periode]]/Driftsutgifter[[#This Row],[Forrige periode]])-1),(Driftsutgifter[[#This Row],[Gjeldende periode]]/Driftsutgifter[[#This Row],[Forrige periode]])-1))),\"-\")","v":{"v":0,"d":"0.00%"}},{"$f":"IFERROR(IF(Driftsutgifter[[#This Row],[Budsjett]]=Driftsutgifter[[#This Row],[Gjeldende periode]],0,IF(Driftsutgifter[[#This Row],[Gjeldende periode]]>Driftsutgifter[[#This Row],[Budsjett]],ABS((Driftsutgifter[[#This Row],[Gjeldende periode]]/Driftsutgifter[[#This Row],[Budsjett]])-1),IF(AND(Driftsutgifter[[#This Row],[Gjeldende periode]]<Driftsutgifter[[#This Row],[Budsjett]],Driftsutgifter[[#This Row],[Budsjett]]<0),-((Driftsutgifter[[#This Row],[Gjeldende periode]]/Driftsutgifter[[#This Row],[Budsjett]])-1),(Driftsutgifter[[#This Row],[Gjeldende periode]]/Driftsutgifter[[#This Row],[Budsjett]])-1))),\"-\")","v":{"v":0,"d":"0.00%"}}]
[null,"Generell og administrativ","Måltider og underholdning",{"$nulls":3},{"$f":"IFERROR(IF(Salgsomsetning=0,\"-\",Driftsutgifter[Gjeldende periode]/Salgsomsetning),\"-\")","v":"-"},{"$f":"IFERROR(IF(Driftsutgifter[[#This Row],[Forrige periode]]=Driftsutgifter[[#This Row],[Gjeldende periode]],0,IF(Driftsutgifter[[#This Row],[Gjeldende periode]]>Driftsutgifter[[#This Row],[Forrige periode]],ABS((Driftsutgifter[[#This Row],[Gjeldende periode]]/Driftsutgifter[[#This Row],[Forrige periode]])-1),IF(AND(Driftsutgifter[[#This Row],[Gjeldende periode]]<Driftsutgifter[[#This Row],[Forrige periode]],Driftsutgifter[[#This Row],[Forrige periode]]<0),-((Driftsutgifter[[#This Row],[Gjeldende periode]]/Driftsutgifter[[#This Row],[Forrige periode]])-1),(Driftsutgifter[[#This Row],[Gjeldende periode]]/Driftsutgifter[[#This Row],[Forrige periode]])-1))),\"-\")","v":{"v":0,"d":"0.00%"}},{"$f":"IFERROR(IF(Driftsutgifter[[#This Row],[Budsjett]]=Driftsutgifter[[#This Row],[Gjeldende periode]],0,IF(Driftsutgifter[[#This Row],[Gjeldende periode]]>Driftsutgifter[[#This Row],[Budsjett]],ABS((Driftsutgifter[[#This Row],[Gjeldende periode]]/Driftsutgifter[[#This Row],[Budsjett]])-1),IF(AND(Driftsutgifter[[#This Row],[Gjeldende periode]]<Driftsutgifter[[#This Row],[Budsjett]],Driftsutgifter[[#This Row],[Budsjett]]<0),-((Driftsutgifter[[#This Row],[Gjeldende periode]]/Driftsutgifter[[#This Row],[Budsjett]])-1),(Driftsutgifter[[#This Row],[Gjeldende periode]]/Driftsutgifter[[#This Row],[Budsjett]])-1))),\"-\")","v":{"v":0,"d":"0.00%"}}]
[null,"Generell og administrativ","Leie",{"$nulls":3},{"$f":"IFERROR(IF(Salgsomsetning=0,\"-\",Driftsutgifter[Gjeldende periode]/Salgsomsetning),\"-\")","v":"-"},{"$f":"IFERROR(IF(Driftsutgifter[[#This Row],[Forrige periode]]=Driftsutgifter[[#This Row],[Gjeldende periode]],0,IF(Driftsutgifter[[#This Row],[Gjeldende periode]]>Driftsutgifter[[#This Row],[Forrige periode]],ABS((Driftsutgifter[[#This Row],[Gjeldende periode]]/Driftsutgifter[[#This Row],[Forrige periode]])-1),IF(AND(Driftsutgifter[[#This Row],[Gjeldende periode]]<Driftsutgifter[[#This Row],[Forrige periode]],Driftsutgifter[[#This Row],[Forrige periode]]<0),-((Driftsutgifter[[#This Row],[Gjeldende periode]]/Driftsutgifter[[#This Row],[Forrige periode]])-1),(Driftsutgifter[[#This Row],[Gjeldende periode]]/Driftsutgifter[[#This Row],[Forrige periode]])-1))),\"-\")","v":{"v":0,"d":"0.00%"}},{"$f":"IFERROR(IF(Driftsutgifter[[#This Row],[Budsjett]]=Driftsutgifter[[#This Row],[Gjeldende periode]],0,IF(Driftsutgifter[[#This Row],[Gjeldende periode]]>Driftsutgifter[[#This Row],[Budsjett]],ABS((Driftsutgifter[[#This Row],[Gjeldende periode]]/Driftsutgifter[[#This Row],[Budsjett]])-1),IF(AND(Driftsutgifter[[#This Row],[Gjeldende periode]]<Driftsutgifter[[#This Row],[Budsjett]],Driftsutgifter[[#This Row],[Budsjett]]<0),-((Driftsutgifter[[#This Row],[Gjeldende periode]]/Driftsutgifter[[#This Row],[Budsjett]])-1),(Driftsutgifter[[#This Row],[Gjeldende periode]]/Driftsutgifter[[#This Row],[Budsjett]])-1))),\"-\")","v":{"v":0,"d":"0.00%"}}]
[null,"Generell og administrativ","Telefon",{"$nulls":3},{"$f":"IFERROR(IF(Salgsomsetning=0,\"-\",Driftsutgifter[Gjeldende periode]/Salgsomsetning),\"-\")","v":"-"},{"$f":"IFERROR(IF(Driftsutgifter[[#This Row],[Forrige periode]]=Driftsutgifter[[#This Row],[Gjeldende periode]],0,IF(Driftsutgifter[[#This Row],[Gjeldende periode]]>Driftsutgifter[[#This Row],[Forrige periode]],ABS((Driftsutgifter[[#This Row],[Gjeldende periode]]/Driftsutgifter[[#This Row],[Forrige periode]])-1),IF(AND(Driftsutgifter[[#This Row],[Gjeldende periode]]<Driftsutgifter[[#This Row],[Forrige periode]],Driftsutgifter[[#This Row],[Forrige periode]]<0),-((Driftsutgifter[[#This Row],[Gjeldende periode]]/Driftsutgifter[[#This Row],[Forrige periode]])-1),(Driftsutgifter[[#This Row],[Gjeldende periode]]/Driftsutgifter[[#This Row],[Forrige periode]])-1))),\"-\")","v":{"v":0,"d":"0.00%"}},{"$f":"IFERROR(IF(Driftsutgifter[[#This Row],[Budsjett]]=Driftsutgifter[[#This Row],[Gjeldende periode]],0,IF(Driftsutgifter[[#This Row],[Gjeldende periode]]>Driftsutgifter[[#This Row],[Budsjett]],ABS((Driftsutgifter[[#This Row],[Gjeldende periode]]/Driftsutgifter[[#This Row],[Budsjett]])-1),IF(AND(Driftsutgifter[[#This Row],[Gjeldende periode]]<Driftsutgifter[[#This Row],[Budsjett]],Driftsutgifter[[#This Row],[Budsjett]]<0),-((Driftsutgifter[[#This Row],[Gjeldende periode]]/Driftsutgifter[[#This Row],[Budsjett]])-1),(Driftsutgifter[[#This Row],[Gjeldende periode]]/Driftsutgifter[[#This Row],[Budsjett]])-1))),\"-\")","v":{"v":0,"d":"0.00%"}}]
[null,"Generell og administrativ","Strøm",{"$nulls":3},{"$f":"IFERROR(IF(Salgsomsetning=0,\"-\",Driftsutgifter[Gjeldende periode]/Salgsomsetning),\"-\")","v":"-"},{"$f":"IFERROR(IF(Driftsutgifter[[#This Row],[Forrige periode]]=Driftsutgifter[[#This Row],[Gjeldende periode]],0,IF(Driftsutgifter[[#This Row],[Gjeldende periode]]>Driftsutgifter[[#This Row],[Forrige periode]],ABS((Driftsutgifter[[#This Row],[Gjeldende periode]]/Driftsutgifter[[#This Row],[Forrige periode]])-1),IF(AND(Driftsutgifter[[#This Row],[Gjeldende periode]]<Driftsutgifter[[#This Row],[Forrige periode]],Driftsutgifter[[#This Row],[Forrige periode]]<0),-((Driftsutgifter[[#This Row],[Gjeldende periode]]/Driftsutgifter[[#This Row],[Forrige periode]])-1),(Driftsutgifter[[#This Row],[Gjeldende periode]]/Driftsutgifter[[#This Row],[Forrige periode]])-1))),\"-\")","v":{"v":0,"d":"0.00%"}},{"$f":"IFERROR(IF(Driftsutgifter[[#This Row],[Budsjett]]=Driftsutgifter[[#This Row],[Gjeldende periode]],0,IF(Driftsutgifter[[#This Row],[Gjeldende periode]]>Driftsutgifter[[#This Row],[Budsjett]],ABS((Driftsutgifter[[#This Row],[Gjeldende periode]]/Driftsutgifter[[#This Row],[Budsjett]])-1),IF(AND(Driftsutgifter[[#This Row],[Gjeldende periode]]<Driftsutgifter[[#This Row],[Budsjett]],Driftsutgifter[[#This Row],[Budsjett]]<0),-((Driftsutgifter[[#This Row],[Gjeldende periode]]/Driftsutgifter[[#This Row],[Budsjett]])-1),(Driftsutgifter[[#This Row],[Gjeldende periode]]/Driftsutgifter[[#This Row],[Budsjett]])-1))),\"-\")","v":{"v":0,"d":"0.00%"}}]
[null,"Generell og administrativ","Avskrivning",{"$nulls":3},{"$f":"IFERROR(IF(Salgsomsetning=0,\"-\",Driftsutgifter[Gjeldende periode]/Salgsomsetning),\"-\")","v":"-"},{"$f":"IFERROR(IF(Driftsutgifter[[#This Row],[Forrige periode]]=Driftsutgifter[[#This Row],[Gjeldende periode]],0,IF(Driftsutgifter[[#This Row],[Gjeldende periode]]>Driftsutgifter[[#This Row],[Forrige periode]],ABS((Driftsutgifter[[#This Row],[Gjeldende periode]]/Driftsutgifter[[#This Row],[Forrige periode]])-1),IF(AND(Driftsutgifter[[#This Row],[Gjeldende periode]]<Driftsutgifter[[#This Row],[Forrige periode]],Driftsutgifter[[#This Row],[Forrige periode]]<0),-((Driftsutgifter[[#This Row],[Gjeldende periode]]/Driftsutgifter[[#This Row],[Forrige periode]])-1),(Driftsutgifter[[#This Row],[Gjeldende periode]]/Driftsutgifter[[#This Row],[Forrige periode]])-1))),\"-\")","v":{"v":0,"d":"0.00%"}},{"$f":"IFERROR(IF(Driftsutgifter[[#This Row],[Budsjett]]=Driftsutgifter[[#This Row],[Gjeldende periode]],0,IF(Driftsutgifter[[#This Row],[Gjeldende periode]]>Driftsutgifter[[#This Row],[Budsjett]],ABS((Driftsutgifter[[#This Row],[Gjeldende periode]]/Driftsutgifter[[#This Row],[Budsjett]])-1),IF(AND(Driftsutgifter[[#This Row],[Gjeldende periode]]<Driftsutgifter[[#This Row],[Budsjett]],Driftsutgifter[[#This Row],[Budsjett]]<0),-((Driftsutgifter[[#This Row],[Gjeldende periode]]/Driftsutgifter[[#This Row],[Budsjett]])-1),(Driftsutgifter[[#This Row],[Gjeldende periode]]/Driftsutgifter[[#This Row],[Budsjett]])-1))),\"-\")","v":{"v":0,"d":"0.00%"}}]
[null,"Generell og administrativ","Forsikring",{"$nulls":3},{"$f":"IFERROR(IF(Salgsomsetning=0,\"-\",Driftsutgifter[Gjeldende periode]/Salgsomsetning),\"-\")","v":"-"},{"$f":"IFERROR(IF(Driftsutgifter[[#This Row],[Forrige periode]]=Driftsutgifter[[#This Row],[Gjeldende periode]],0,IF(Driftsutgifter[[#This Row],[Gjeldende periode]]>Driftsutgifter[[#This Row],[Forrige periode]],ABS((Driftsutgifter[[#This Row],[Gjeldende periode]]/Driftsutgifter[[#This Row],[Forrige periode]])-1),IF(AND(Driftsutgifter[[#This Row],[Gjeldende periode]]<Driftsutgifter[[#This Row],[Forrige periode]],Driftsutgifter[[#This Row],[Forrige periode]]<0),-((Driftsutgifter[[#This Row],[Gjeldende periode]]/Driftsutgifter[[#This Row],[Forrige periode]])-1),(Driftsutgifter[[#This Row],[Gjeldende periode]]/Driftsutgifter[[#This Row],[Forrige periode]])-1))),\"-\")","v":{"v":0,"d":"0.00%"}},{"$f":"IFERROR(IF(Driftsutgifter[[#This Row],[Budsjett]]=Driftsutgifter[[#This Row],[Gjeldende periode]],0,IF(Driftsutgifter[[#This Row],[Gjeldende periode]]>Driftsutgifter[[#This Row],[Budsjett]],ABS((Driftsutgifter[[#This Row],[Gjeldende periode]]/Driftsutgifter[[#This Row],[Budsjett]])-1),IF(AND(Driftsutgifter[[#This Row],[Gjeldende periode]]<Driftsutgifter[[#This Row],[Budsjett]],Driftsutgifter[[#This Row],[Budsjett]]<0),-((Driftsutgifter[[#This Row],[Gjeldende periode]]/Driftsutgifter[[#This Row],[Budsjett]])-1),(Driftsutgifter[[#This Row],[Gjeldende periode]]/Driftsutgifter[[#This Row],[Budsjett]])-1))),\"-\")","v":{"v":0,"d":"0.00%"}}]
[null,"Generell og administrativ","Reparasjon og vedlikehold",{"$nulls":3},{"$f":"IFERROR(IF(Salgsomsetning=0,\"-\",Driftsutgifter[Gjeldende periode]/Salgsomsetning),\"-\")","v":"-"},{"$f":"IFERROR(IF(Driftsutgifter[[#This Row],[Forrige periode]]=Driftsutgifter[[#This Row],[Gjeldende periode]],0,IF(Driftsutgifter[[#This Row],[Gjeldende periode]]>Driftsutgifter[[#This Row],[Forrige periode]],ABS((Driftsutgifter[[#This Row],[Gjeldende periode]]/Driftsutgifter[[#This Row],[Forrige periode]])-1),IF(AND(Driftsutgifter[[#This Row],[Gjeldende periode]]<Driftsutgifter[[#This Row],[Forrige periode]],Driftsutgifter[[#This Row],[Forrige periode]]<0),-((Driftsutgifter[[#This Row],[Gjeldende periode]]/Driftsutgifter[[#This Row],[Forrige periode]])-1),(Driftsutgifter[[#This Row],[Gjeldende periode]]/Driftsutgifter[[#This Row],[Forrige periode]])-1))),\"-\")","v":{"v":0,"d":"0.00%"}},{"$f":"IFERROR(IF(Driftsutgifter[[#This Row],[Budsjett]]=Driftsutgifter[[#This Row],[Gjeldende periode]],0,IF(Driftsutgifter[[#This Row],[Gjeldende periode]]>Driftsutgifter[[#This Row],[Budsjett]],ABS((Driftsutgifter[[#This Row],[Gjeldende periode]]/Driftsutgifter[[#This Row],[Budsjett]])-1),IF(AND(Driftsutgifter[[#This Row],[Gjeldende periode]]<Driftsutgifter[[#This Row],[Budsjett]],Driftsutgifter[[#This Row],[Budsjett]]<0),-((Driftsutgifter[[#This Row],[Gjeldende periode]]/Driftsutgifter[[#This Row],[Budsjett]])-1),(Driftsutgifter[[#This Row],[Gjeldende periode]]/Driftsutgifter[[#This Row],[Budsjett]])-1))),\"-\")","v":{"v":0,"d":"0.00%"}}]
[null,"Generell og administrativ","Andre utgifter (spesifiser)",{"$nulls":3},{"$f":"IFERROR(IF(Salgsomsetning=0,\"-\",Driftsutgifter[Gjeldende periode]/Salgsomsetning),\"-\")","v":"-"},{"$f":"IFERROR(IF(Driftsutgifter[[#This Row],[Forrige periode]]=Driftsutgifter[[#This Row],[Gjeldende periode]],0,IF(Driftsutgifter[[#This Row],[Gjeldende periode]]>Driftsutgifter[[#This Row],[Forrige periode]],ABS((Driftsutgifter[[#This Row],[Gjeldende periode]]/Driftsutgifter[[#This Row],[Forrige periode]])-1),IF(AND(Driftsutgifter[[#This Row],[Gjeldende periode]]<Driftsutgifter[[#This Row],[Forrige periode]],Driftsutgifter[[#This Row],[Forrige periode]]<0),-((Driftsutgifter[[#This Row],[Gjeldende periode]]/Driftsutgifter[[#This Row],[Forrige periode]])-1),(Driftsutgifter[[#This Row],[Gjeldende periode]]/Driftsutgifter[[#This Row],[Forrige periode]])-1))),\"-\")","v":{"v":0,"d":"0.00%"}},{"$f":"IFERROR(IF(Driftsutgifter[[#This Row],[Budsjett]]=Driftsutgifter[[#This Row],[Gjeldende periode]],0,IF(Driftsutgifter[[#This Row],[Gjeldende periode]]>Driftsutgifter[[#This Row],[Budsjett]],ABS((Driftsutgifter[[#This Row],[Gjeldende periode]]/Driftsutgifter[[#This Row],[Budsjett]])-1),IF(AND(Driftsutgifter[[#This Row],[Gjeldende periode]]<Driftsutgifter[[#This Row],[Budsjett]],Driftsutgifter[[#This Row],[Budsjett]]<0),-((Driftsutgifter[[#This Row],[Gjeldende periode]]/Driftsutgifter[[#This Row],[Budsjett]])-1),(Driftsutgifter[[#This Row],[Gjeldende periode]]/Driftsutgifter[[#This Row],[Budsjett]])-1))),\"-\")","v":{"v":0,"d":"0.00%"}}]
[null,"Generell og administrativ","Andre utgifter (spesifiser)",{"$nulls":3},{"$f":"IFERROR(IF(Salgsomsetning=0,\"-\",Driftsutgifter[Gjeldende periode]/Salgsomsetning),\"-\")","v":"-"},{"$f":"IFERROR(IF(Driftsutgifter[[#This Row],[Forrige periode]]=Driftsutgifter[[#This Row],[Gjeldende periode]],0,IF(Driftsutgifter[[#This Row],[Gjeldende periode]]>Driftsutgifter[[#This Row],[Forrige periode]],ABS((Driftsutgifter[[#This Row],[Gjeldende periode]]/Driftsutgifter[[#This Row],[Forrige periode]])-1),IF(AND(Driftsutgifter[[#This Row],[Gjeldende periode]]<Driftsutgifter[[#This Row],[Forrige periode]],Driftsutgifter[[#This Row],[Forrige periode]]<0),-((Driftsutgifter[[#This Row],[Gjeldende periode]]/Driftsutgifter[[#This Row],[Forrige periode]])-1),(Driftsutgifter[[#This Row],[Gjeldende periode]]/Driftsutgifter[[#This Row],[Forrige periode]])-1))),\"-\")","v":{"v":0,"d":"0.00%"}},{"$f":"IFERROR(IF(Driftsutgifter[[#This Row],[Budsjett]]=Driftsutgifter[[#This Row],[Gjeldende periode]],0,IF(Driftsutgifter[[#This Row],[Gjeldende periode]]>Driftsutgifter[[#This Row],[Budsjett]],ABS((Driftsutgifter[[#This Row],[Gjeldende periode]]/Driftsutgifter[[#This Row],[Budsjett]])-1),IF(AND(Driftsutgifter[[#This Row],[Gjeldende periode]]<Driftsutgifter[[#This Row],[Budsjett]],Driftsutgifter[[#This Row],[Budsjett]]<0),-((Driftsutgifter[[#This Row],[Gjeldende periode]]/Driftsutgifter[[#This Row],[Budsjett]])-1),(Driftsutgifter[[#This Row],[Gjeldende periode]]/Driftsutgifter[[#This Row],[Budsjett]])-1))),\"-\")","v":{"v":0,"d":"0.00%"}}]
[null,"Totale driftskostnader",null,{"$f":"SUBTOTAL(109,Driftsutgifter[Forrige periode])","v":0},{"$f":"SUBTOTAL(109,Driftsutgifter[Budsjett])","v":0},{"$f":"SUBTOTAL(109,Driftsutgifter[Gjeldende periode])","v":0},{"$f":"SUBTOTAL(109,Driftsutgifter[Gjeldende periode som % av salg])","v":{"v":0,"d":"0.00%"}},{"$f":"SUBTOTAL(109,Driftsutgifter[% endring fra forrige periode])","v":{"v":0,"d":"0.00%"}},{"$f":"SUBTOTAL(109,Driftsutgifter[% endring fra budsjett])","v":{"v":0,"d":"0.00%"}}]

{"sheet":"Avgifter","index":4,"n_rows":10,"n_cols":9,"rows_kept":10,"merged":[[0,7,2,8]]}
[null,{"$f":"Arbeidsboktittel","v":"Oversikt over tap og fortjeneste"}]
[null,{"$f":"Firmanavn","v":"Firmanavn"},"Angitt i 000"]
[null,"Avgifter",{"$f":"IFERROR(Avgifter[[#Totals],[Gjeldende periode]],\"-\")","v":0}]
[null,"Type","Beskrivelse","Forrige periode","Budsjett","Gjeldende periode","Gjeldende periode som % av salg","% endring fra forrige periode","% endring fra budsjett"]
[null,"Avgifter","Inntektsskatt",{"$nulls":3},{"$f":"IFERROR(IF(Salgsomsetning=0,\"-\",Avgifter[Gjeldende periode]/Salgsomsetning),\"-\")","v":"-"},{"$f":"IFERROR(IF(Avgifter[[#This Row],[Forrige periode]]=Avgifter[[#This Row],[Gjeldende periode]],0,IF(Avgifter[[#This Row],[Gjeldende periode]]>Avgifter[[#This Row],[Forrige periode]],ABS((Avgifter[[#This Row],[Gjeldende periode]]/Avgifter[[#This Row],[Forrige periode]])-1),IF(AND(Avgifter[[#This Row],[Gjeldende periode]]<Avgifter[[#This Row],[Forrige periode]],Avgifter[[#This Row],[Forrige periode]]<0),-((Avgifter[[#This Row],[Gjeldende periode]]/Avgifter[[#This Row],[Forrige periode]])-1),(Avgifter[[#This Row],[Gjeldende periode]]/Avgifter[[#This Row],[Forrige periode]])-1))),\"-\")","v":{"v":0,"d":"0.00%"}},{"$f":"IFERROR(IF(Avgifter[[#This Row],[Budsjett]]=Avgifter[[#This Row],[Gjeldende periode]],0,IF(Avgifter[[#This Row],[Gjeldende periode]]>Avgifter[[#This Row],[Budsjett]],ABS((Avgifter[[#This Row],[Gjeldende periode]]/Avgifter[[#This Row],[Budsjett]])-1),IF(AND(Avgifter[[#This Row],[Gjeldende periode]]<Avgifter[[#This Row],[Budsjett]],Avgifter[[#This Row],[Budsjett]]<0),-((Avgifter[[#This Row],[Gjeldende periode]]/Avgifter[[#This Row],[Budsjett]])-1),(Avgifter[[#This Row],[Gjeldende periode]]/Avgifter[[#This Row],[Budsjett]])-1))),\"-\")","v":{"v":0,"d":"0.00%"}}]
[null,"Avgifter","Arbeidsgiveravgift",{"$nulls":3},{"$f":"IFERROR(IF(Salgsomsetning=0,\"-\",Avgifter[Gjeldende periode]/Salgsomsetning),\"-\")","v":"-"},{"$f":"IFERROR(IF(Avgifter[[#This Row],[Forrige periode]]=Avgifter[[#This Row],[Gjeldende periode]],0,IF(Avgifter[[#This Row],[Gjeldende periode]]>Avgifter[[#This Row],[Forrige periode]],ABS((Avgifter[[#This Row],[Gjeldende periode]]/Avgifter[[#This Row],[Forrige periode]])-1),IF(AND(Avgifter[[#This Row],[Gjeldende periode]]<Avgifter[[#This Row],[Forrige periode]],Avgifter[[#This Row],[Forrige periode]]<0),-((Avgifter[[#This Row],[Gjeldende periode]]/Avgifter[[#This Row],[Forrige periode]])-1),(Avgifter[[#This Row],[Gjeldende periode]]/Avgifter[[#This Row],[Forrige periode]])-1))),\"-\")","v":{"v":0,"d":"0.00%"}},{"$f":"IFERROR(IF(Avgifter[[#This Row],[Budsjett]]=Avgifter[[#This Row],[Gjeldende periode]],0,IF(Avgifter[[#This Row],[Gjeldende periode]]>Avgifter[[#This Row],[Budsjett]],ABS((Avgifter[[#This Row],[Gjeldende periode]]/Avgifter[[#This Row],[Budsjett]])-1),IF(AND(Avgifter[[#This Row],[Gjeldende periode]]<Avgifter[[#This Row],[Budsjett]],Avgifter[[#This Row],[Budsjett]]<0),-((Avgifter[[#This Row],[Gjeldende periode]]/Avgifter[[#This Row],[Budsjett]])-1),(Avgifter[[#This Row],[Gjeldende periode]]/Avgifter[[#This Row],[Budsjett]])-1))),\"-\")","v":{"v":0,"d":"0.00%"}}]
[null,"Avgifter","Eiendomsskatt",{"$nulls":3},{"$f":"IFERROR(IF(Salgsomsetning=0,\"-\",Avgifter[Gjeldende periode]/Salgsomsetning),\"-\")","v":"-"},{"$f":"IFERROR(IF(Avgifter[[#This Row],[Forrige periode]]=Avgifter[[#This Row],[Gjeldende periode]],0,IF(Avgifter[[#This Row],[Gjeldende periode]]>Avgifter[[#This Row],[Forrige periode]],ABS((Avgifter[[#This Row],[Gjeldende periode]]/Avgifter[[#This Row],[Forrige periode]])-1),IF(AND(Avgifter[[#This Row],[Gjeldende periode]]<Avgifter[[#This Row],[Forrige periode]],Avgifter[[#This Row],[Forrige periode]]<0),-((Avgifter[[#This Row],[Gjeldende periode]]/Avgifter[[#This Row],[Forrige periode]])-1),(Avgifter[[#This Row],[Gjeldende periode]]/Avgifter[[#This Row],[Forrige periode]])-1))),\"-\")","v":{"v":0,"d":"0.00%"}},{"$f":"IFERROR(IF(Avgifter[[#This Row],[Budsjett]]=Avgifter[[#This Row],[Gjeldende periode]],0,IF(Avgifter[[#This Row],[Gjeldende periode]]>Avgifter[[#This Row],[Budsjett]],ABS((Avgifter[[#This Row],[Gjeldende periode]]/Avgifter[[#This Row],[Budsjett]])-1),IF(AND(Avgifter[[#This Row],[Gjeldende periode]]<Avgifter[[#This Row],[Budsjett]],Avgifter[[#This Row],[Budsjett]]<0),-((Avgifter[[#This Row],[Gjeldende periode]]/Avgifter[[#This Row],[Budsjett]])-1),(Avgifter[[#This Row],[Gjeldende periode]]/Avgifter[[#This Row],[Budsjett]])-1))),\"-\")","v":{"v":0,"d":"0.00%"}}]
[null,"Avgifter","Annen skatt (spesifiser)",{"$nulls":3},{"$f":"IFERROR(IF(Salgsomsetning=0,\"-\",Avgifter[Gjeldende periode]/Salgsomsetning),\"-\")","v":"-"},{"$f":"IFERROR(IF(Avgifter[[#This Row],[Forrige periode]]=Avgifter[[#This Row],[Gjeldende periode]],0,IF(Avgifter[[#This Row],[Gjeldende periode]]>Avgifter[[#This Row],[Forrige periode]],ABS((Avgifter[[#This Row],[Gjeldende periode]]/Avgifter[[#This Row],[Forrige periode]])-1),IF(AND(Avgifter[[#This Row],[Gjeldende periode]]<Avgifter[[#This Row],[Forrige periode]],Avgifter[[#This Row],[Forrige periode]]<0),-((Avgifter[[#This Row],[Gjeldende periode]]/Avgifter[[#This Row],[Forrige periode]])-1),(Avgifter[[#This Row],[Gjeldende periode]]/Avgifter[[#This Row],[Forrige periode]])-1))),\"-\")","v":{"v":0,"d":"0.00%"}},{"$f":"IFERROR(IF(Avgifter[[#This Row],[Budsjett]]=Avgifter[[#This Row],[Gjeldende periode]],0,IF(Avgifter[[#This Row],[Gjeldende periode]]>Avgifter[[#This Row],[Budsjett]],ABS((Avgifter[[#This Row],[Gjeldende periode]]/Avgifter[[#This Row],[Budsjett]])-1),IF(AND(Avgifter[[#This Row],[Gjeldende periode]]<Avgifter[[#This Row],[Budsjett]],Avgifter[[#This Row],[Budsjett]]<0),-((Avgifter[[#This Row],[Gjeldende periode]]/Avgifter[[#This Row],[Budsjett]])-1),(Avgifter[[#This Row],[Gjeldende periode]]/Avgifter[[#This Row],[Budsjett]])-1))),\"-\")","v":{"v":0,"d":"0.00%"}}]
[null,"Avgifter","Annen skatt (spesifiser)",{"$nulls":3},{"$f":"IFERROR(IF(Salgsomsetning=0,\"-\",Avgifter[Gjeldende periode]/Salgsomsetning),\"-\")","v":"-"},{"$f":"IFERROR(IF(Avgifter[[#This Row],[Forrige periode]]=Avgifter[[#This Row],[Gjeldende periode]],0,IF(Avgifter[[#This Row],[Gjeldende periode]]>Avgifter[[#This Row],[Forrige periode]],ABS((Avgifter[[#This Row],[Gjeldende periode]]/Avgifter[[#This Row],[Forrige periode]])-1),IF(AND(Avgifter[[#This Row],[Gjeldende periode]]<Avgifter[[#This Row],[Forrige periode]],Avgifter[[#This Row],[Forrige periode]]<0),-((Avgifter[[#This Row],[Gjeldende periode]]/Avgifter[[#This Row],[Forrige periode]])-1),(Avgifter[[#This Row],[Gjeldende periode]]/Avgifter[[#This Row],[Forrige periode]])-1))),\"-\")","v":{"v":0,"d":"0.00%"}},{"$f":"IFERROR(IF(Avgifter[[#This Row],[Budsjett]]=Avgifter[[#This Row],[Gjeldende periode]],0,IF(Avgifter[[#This Row],[Gjeldende periode]]>Avgifter[[#This Row],[Budsjett]],ABS((Avgifter[[#This Row],[Gjeldende periode]]/Avgifter[[#This Row],[Budsjett]])-1),IF(AND(Avgifter[[#This Row],[Gjeldende periode]]<Avgifter[[#This Row],[Budsjett]],Avgifter[[#This Row],[Budsjett]]<0),-((Avgifter[[#This Row],[Gjeldende periode]]/Avgifter[[#This Row],[Budsjett]])-1),(Avgifter[[#This Row],[Gjeldende periode]]/Avgifter[[#This Row],[Budsjett]])-1))),\"-\")","v":{"v":0,"d":"0.00%"}}]
[null,"Totalskatt",null,{"$f":"SUBTOTAL(109,Avgifter[Forrige periode])","v":0},{"$f":"SUBTOTAL(109,Avgifter[Budsjett])","v":0},{"$f":"SUBTOTAL(109,Avgifter[Gjeldende periode])","v":0},{"$f":"IFERROR(SUBTOTAL(109,Avgifter[Gjeldende periode som % av salg]),\"-\")","v":{"v":0,"d":"0.00%"}},{"$f":"SUBTOTAL(109,Avgifter[% endring fra forrige periode])","v":{"v":0,"d":"0.00%"}},{"$f":"SUBTOTAL(109,Avgifter[% endring fra budsjett])","v":{"v":0,"d":"0.00%"}}]

{"sheet":"Kategorier","index":5,"n_rows":8,"n_cols":2,"rows_kept":8}
[null,"Kategorier"]
[null,"Salgsomsetning"]
[null,"Kostnad for salg"]
[null,"Inntekter"]
[null,"Salg og markedsføring"]
[null,"Forskning og utvikling"]
[null,"Generell og administrativ"]
[null,"Avgifter"]